Cogmind - Beta 15 @@@ ROGUE MODE // 2025.09.04 @ 15:40:15 Player: mix Result: Destroyed by JL-QDS(R) with Subdweller Laser Performance ------------- Evolutions (0) 0 Regions Visited (2) 400 Robots Destroyed (15) 75 Value Destroyed (311) 311 Prototype IDs (0) 0 Alien Tech Used (0) 0 Bonus (0) 0 TOTAL SCORE: 786 Bonus ------- None Cogmind --------- Core Integrity 0/250 Matter 231/300 Energy 99/100 System Corruption 0% Temperature Cool (12) Movement Core (50) Location -10/Subcaves Parts ------- > --- POWER (1) -------- (None) > --- PROPULSION (2) --- (None) > --- UTILITY (2) ------ (None) > --- WEAPON (2) ------- (None) > --- INVENTORY (5) ---- Weight Redist. System Signal Interpreter Recalibrator Small Laser Scrap Shield Fragment (43) Peak State ------------ > --- POWER ------------ Light Ion Engine > --- PROPULSION ------- Light Treads Light Treads > --- UTILITY ---------- Medium Storage Unit Recalibrator > --- WEAPON ----------- Subdweller Beam Cannon Subdweller Shrapnel Launcher > --- INVENTORY -------- Small Storage Unit Medium Storage Unit Weight Redist. System Signal Interpreter Small Laser Scrap Shield Fragment Scrap Shield Fragment Scrap Shield Fragment [Rating: 13] Favorites ----------- Power Light Ion Engine Engine Light Ion Engine Propulsion Light Treads Treads Light Treads Utility Small Storage Unit Device Recalibrator Storage Small Storage Unit Weapon Subdweller Beam Cannon Energy Gun Small Laser Energy Cannon Subdweller Beam Cannon Ballistic Gun Light Assault Rifle Launcher Subdweller Shrapnel Launcher Build | -11 -10 -10 ------- Run | Yrd Mat Sub Slots Evolved . | . . . Power . | . . . Propulsion . | . . . Utility . | . . . Weapon . | . . . Parts Attached 13 | 6 1 6 Power 3 | 1 1 1 Engine 3 | 1 1 1 Core . | . . . Reactor . | . . . Propulsion 3 | 2 . 1 Treads 3 | 2 . 1 Leg . | . . . Wheel . | . . . Hover . | . . . Flight . | . . . Utility 3 | 1 . 2 Device 1 | . . 1 Storage 2 | 1 . 1 Processor . | . . . Hackware . | . . . Protection . | . . . Artifact . | . . . Weapon 4 | 2 . 2 Energy Gun 1 | 1 . . Energy Cannon 1 | . . 1 Ballistic Gun 1 | 1 . . Ballistic Cannon . | . . . Launcher 1 | . . 1 Special Weapon . | . . . Impact Weapon . | . . . Slashing Weapon . | . . . Piercing Weapon . | . . . Special Melee Weapon . | . . . Unidentified Prototypes . | . . . Parts Lost 6 | . . 6 Power 2 | . . 2 Propulsion 3 | . . 3 Utility . | . . . Weapon 1 | . . 1 Highest Loss Streak 4 | . . 4 To Critical Strikes . | . . . Average Backups 5 | 1 3 6 Power . | . 1 . Propulsion . | . . . Utility 3 | . 1 4 Weapon . | . . 1 Tool/Special . | . . . Unused Backups 5 | . 1 4 Power . | . . . Propulsion . | . . . Utility 4 | . 1 3 Weapon 1 | . . 1 Tool/Special . | . . . Average Slot Usage (%) 94 | . 85 98 Engine 13 | . 14 13 Treads 27 | . 28 27 Device 1 | . . 2 Storage 21 | . 14 25 Energy Gun 5 | . 14 1 Energy Cannon 9 | . . 13 Ballistic Gun 4 | . 14 . Launcher 8 | . . 11 Peak Build Rating 13 | 6 7 13 Average Rating 8 | 4 6 10 On Entrance 4 | . 6 7 Naked Turns 15 | . . 15 Heaviest Build 36 | 10 12 36 Greatest Support 40 | 40 40 40 Greatest Overweight (x) 9 | . . 9 Average Overweight (x) . | . . . Largest Inventory Capacity 10 | 8 8 10 Average Capacity 9 | 7 8 9 Most Carried 10 | 5 8 10 Average Carried 6 | 1 3 8 Final Capacity 8 | 8 8 5 Final Carried 7 | 1 7 5 Class Distribution -------------------- 91% | Mutant 8% | Scavenger-Mutant Dominant Class ---------------- Mutant | -10/Materials Mutant | -10/Subcaves Resources | -11 -10 -10 ----------- Run | Yrd Mat Sub Matter Collected 553 | 221 78 254 Remotely . | . . . Salvage Created 353 | . 199 154 Parts 26 | . 14 12 Haulers Intercepted 2 | . 2 . Recyclers Shooed . | . . . Parts Field Recycled . | . . . Retrieved Matter . | . . . Parts Self-Destructed 9 | . . 9 Prevented . | . . . Kills | -11 -10 -10 ------- Run | Yrd Mat Sub Combat Hostiles Destroyed 12 | . 3 9 Guns 5 | . 3 2 Cannons 3 | . . 3 AOE 4 | . . 4 Classes Destroyed 5 | . 4 1 Hauler 2 | . 2 . Mechanic 1 | . 1 . Swarmer 6 | . 2 4 Grunt 1 | . 1 . Subdweller 5 | . . 5 Best Kill Streak 4 | . 3 4 Combat Bots Only 4 | . 2 4 Max Kills in Single Turn 2 | . 1 2 Gunslinging . | . . . Exploded 2 | . . 2 Melee . | . . . Uniques/NPCs Destroyed . | . . . Combat | -11 -10 -10 -------- Run | Yrd Mat Sub Hostile Shots Fired 94 | . 30 64 Missed 19 | . 6 13 Hits 75 | . 24 51 Projectile 75 | . 24 51 Damage Taken 1085 | . 212 873 Core 269 | . 33 236 Absorbed by Shields . | . . . Core Remaining (%) 100 | 100 . . Volleys Fired 50 | . 29 21 Largest 2 | . 2 2 Hottest 120 | . 60 120 Shots Fired 96 | . 58 38 Gun 68 | . 58 10 Cannon 16 | . . 16 Launcher 12 | . . 12 Special . | . . . Kinetic 44 | . 29 15 Thermal 52 | . 29 23 Explosive . | . . . Electromagnetic . | . . . Robot Hit Streak 10 | . 10 7 Robot Miss Streak 4 | . 4 3 Penetration Max . | . . . Secondary Targets . | . . . Shots Hit Robots 56 | . 37 19 Core Hits 27 | . 13 14 Critical Kills . | . . . Critical Parts Destroyed 1 | . 1 . Critical Strikes 1 | . 1 . Destroy 1 | . 1 . Melee Attacks . | . . . Impact . | . . . Slashing . | . . . Piercing . | . . . Sneak Attacks . | . . . Combat Hostiles . | . . . Follow-up Attacks . | . . . Damage Inflicted 1221 | . 368 853 Guns 454 | . 368 86 Cannons 225 | . . 225 Explosions 542 | . . 542 Melee . | . . . Ramming . | . . . Kinetic 731 | . 173 558 Thermal 490 | . 195 295 Explosive . | . . . Electromagnetic . | . . . Impact . | . . . Slashing . | . . . Piercing . | . . . Highest Corruption . | . . . Average Corruption . | . . . Corruption Purged . | . . . Corruption Blocked . | . . . Overload Shots . | . . . Overflow Damage 13 | . . 13 Projectiles . | . . . Explosions 13 | . . 13 Melee . | . . . Knockbacks . | . . . Impact . | . . . Kinetic . | . . . Secondary . | . . . Self-Inflicted Damage 173 | . . 173 Shots 4 | . . 4 Rammed . | . . . Targets Rammed . | . . . Kicked . | . . . Crushed . | . . . Highest Temperature 60 | . 60 18 Average Temperature 19 | . 20 6 Received Heat Transfer 174 | . 18 156 Siege Activations . | . . . Martial Activations . | . . . Shielding Activations . | . . . Robots Disrupted . | . . . Combat Hostiles . | . . . Robots Corrupted . | . . . Combat Hostiles . | . . . Parts Fried . | . . . Impact Corruptions . | . . . Robots Melted . | . . . Combat Hostiles . | . . . Parts Melted 1 | . . 1 Heat Transferred 896 | . 450 446 Parts Sabotaged . | . . . Parts Stolen . | . . . Parts Stripped . | . . . Power Chain Reactions . | . . . Alert | -11 -10 -10 ------- Run | Yrd Mat Sub Maximum Alert Level . | . . . Low Security (%) 100 | 100 100 . Level 1 . | . . . Level 2 . | . . . Level 3 . | . . . Level 4 . | . . . Level 5 . | . . . High Security . | . . . Max Security . | . . . Peak Influence 50 | . 50 . Initial . | . . . Average 6 | . 6 . Influence Increases 289 | . 89 200 Destroy 0b10 Robot/C 140 | . 60 80 Destroy 0b10 Robot/NC 15 | . 15 . Destroy Leader 14 | . 14 . Lose Combat Pursuer 120 | . . 120 Influence Decreases 289 | . 89 200 Time Decay 289 | . 89 200 Squads Dispatched 1 | . 1 . Investigation . | . . . Extermination . | . . . Reinforcement 1 | . 1 . Assault . | . . . Garrison . | . . . Intercept . | . . . Searches Triggered . | . . . Construction Impeded . | . . . Haulers Reinforced . | . . . Active Scanning Responses . | . . . Cargo Convoy Interrupts . | . . . Stealth | -11 -10 -10 --------- Run | Yrd Mat Sub Distress Signals 1 | . 1 . Communications Jammed . | . . . Distress Signals . | . . . Times Spotted 30 | . 12 18 Peak Tracking Total 6 | . 4 6 Tactical Retreats 3 | . . 3 Traps | -11 -10 -10 ------- Run | Yrd Mat Sub Traps Triggered . | . . . Indirectly . | . . . Trap Hack Attempts . | . . . Triggered . | . . . Disarmed . | . . . Reprogrammed . | . . . Reused . | . . . Traps Extracted . | . . . Installed . | . . . Triggered . | . . . Machines | -11 -10 -10 ---------- Run | Yrd Mat Sub Machines Disabled 3 | . . 3 Max in Single Turn 3 | . . 3 Machines Repaired . | . . . Machines Dismantled . | . . . Machines Sabotaged . | . . . Overloaded Fab Kills . | . . . Hacking | -11 -10 -10 --------- Run | Yrd Mat Sub Machines Accessed . | . . . Terminals . | . . . Fabricators . | . . . Repair Stations . | . . . Recycling Units . | . . . Scanalyzers . | . . . Garrison Access . | . . . Total Hacks . | . . . Successful . | . . . Failed . | . . . Catastrophic . | . . . Database Lockouts . | . . . Manual . | . . . Terminals . | . . . Fabricators . | . . . Repair Stations . | . . . Recycling Units . | . . . Scanalyzers . | . . . Garrison Access . | . . . Terminal Hacks . | . . . Fabricator Hacks . | . . . Repair Station Hacks . | . . . Recycling Unit Hacks . | . . . Scanalyzer . | . . . Garrison Access Hacks . | . . . Unauthorized Hacks . | . . . Terminals . | . . . Fabricators . | . . . Repair Stations . | . . . Recycling Units . | . . . Scanalyzers . | . . . Garrison Access . | . . . Data Cores Recovered . | . . . Used . | . . . Hacking Detections . | . . . Full Trace Events . | . . . Feedback Events . | . . . Feedback Blocked . | . . . Robot Schematics Acquired . | . . . Robots Built . | . . . Authchips . | . . . Time . | . . . Total Robot Build Rating . | . . . Part Schematics Acquired . | . . . Parts Built . | . . . Authchips . | . . . Time . | . . . Total Part Build Rating . | . . . Parts Repaired . | . . . Time . | . . . Parts Recycled . | . . . Recycled Matter . | . . . Retrieved Matter . | . . . Retrieved Components . | . . . Parts Scanalyzed . | . . . Part Schematics Acquired . | . . . Parts Damaged . | . . . Bothacking | -11 -10 -10 ------------ Run | Yrd Mat Sub Used RIF Installer . | . . . Robots Hacked . | . . . Non-combat . | . . . Combat . | . . . Robot Hacks Applied . | . . . Relay Couplers Released . | . . . Fabnet Peak Effective % . | . . . Robots Rewired . | . . . Allies Hacked . | . . . Hacks Repelled . | . . . Allies | -11 -10 -10 -------- Run | Yrd Mat Sub Total Allies . | . . . Largest Group . | . . . Highest-Rated Group . | . . . Highest-Rated Ally . | . . . Total Orders . | . . . Ally Attacks . | . . . Total Damage . | . . . Kills . | . . . Allies Corrupted . | . . . Allies Melted . | . . . Intel | -11 -10 -10 ------- Run | Yrd Mat Sub Active Infowar (turns) . | . . . Robot Analysis Total . | . . . Derelict Logs Recovered . | . . . Drone Launches . | . . . Drone Recoveries . | . . . Exploration | -11 -10 -10 ------------- Run | Yrd Mat Sub Turns Passed 2163 | 67 596 1500 Spaces Moved 1127 | 34 280 813 Core 41 | 8 . 33 Treads 1086 | 26 280 780 Legs . | . . . Wheels . | . . . Hover . | . . . Flight . | . . . Fastest Speed 50 | 50 160 50 Average Speed 157 | 134 160 157 Slowest Speed 500 | 160 160 500 Overloaded Moves . | . . . Propulsion Burnouts . | . . . Robots Hopped . | . . . Potential Cave-ins . | . . . Cave-ins Triggered . | . . . Exploration Rate (%) 27 | 4 32 46 Regions Visited 2 Branch Regions 1 Pre-discovered Areas . | . . . Known Exits Taken . | . . . Unknown Exits Taken 2 | 1 1 . Scrap Searched 1 | . . 1 Spaces Dug 16 | . . 16 Terrain Destroyed 143 | . . 143 Melee . | . . . Projectile 3 | . . 3 AOE 140 | . . 140 Terrain Rammed . | . . . Walls Destroyed . | . . . Machines Disabled . | . . . Actions | -11 -10 -10 --------- Run | Yrd Mat Sub Total 1422 | 56 376 990 Wait 202 | 10 57 135 Move 1125 | 33 279 813 Hop . | . . . Pick Up 21 | 7 8 6 Fast Attach . | . . . Attach 9 | 6 . 3 Detach . | . . . Swap 9 | . 1 8 Drop 6 | . 2 4 Fire 50 | . 29 21 Melee . | . . . Ram . | . . . Kick . | . . . Crush . | . . . Escape Stasis . | . . . Rewire . | . . . Trap . | . . . Miscellaneous . | . . . Route ------- -11/Scrapyard -10/Materials (discovered 2 exits: [*Mat] / [*Sub]) -10/Subcaves (discovered 1 exit: [*Rec]) History --------- Turn | Location | Event 19 | -11/Scrapyard | Discovered new exit (range 15) 68 | -11/Scrapyard | Entered Materials 111 | -10/Materials | Discovered new exit (range 6) 316 | -10/Materials | Build established: Mutant 478 | -10/Materials | Discovered new exit (range 12) 664 | -10/Materials | Entered Subcaves 1375 | -10/Subcaves | Core integrity fell below 50% 1392 | -10/Subcaves | Discovered new exit (range 9) 2052 | -10/Subcaves | A swath of the cavern ceiling suddenly collapsed 2110 | -10/Subcaves | A swath of the cavern ceiling suddenly collapsed 2151 | -10/Subcaves | Core integrity fell below 20% 2164 | -10/Subcaves | Destroyed by JL-QDS(R) with Subdweller Laser Last Messages --------------- 01939_ H2-397(u) deconstructs Twisted Machinery. 01946_ Acquired 14 matter. 01952_ Acquired Sub. Beam Cannon. 01963_ Subatomizers dissect the Sub. Power Source. 01971_ H2-397(u) deconstructs Twisted Machinery. 02030_ Acquired 58 matter. A swath of the cavern ceiling suddenly collapses. 02144_ Lgt. Treads destroyed. 02145_ Destroyed Lgt. Treads. 02145_ Lgt. Ion Engine destroyed. 02145_ Destroyed Lgt. Ion Engine. 02145_ Sub. Shrapnel Launcher destroyed. 02145_ Destroyed Sub. Shrapnel Launcher. 02148_ Dropped Med. Storage Unit. 02149_ Dropped Sub. Beam Cannon. 02149_ Dropped Sml. Storage Unit. Map ----- +----------------------------------------------------+ | ?????????????????????????????????????????????????# | | ?????????????????????????????????????????????????# | | ?????????????????????????????????????????????????# | | ?????????????????????????????????????????????????? | | ?????????????????????????????????????????????????? | | ?????????????????????????????????????????????????? | | ?????????????????????????????????????????????????? | | ?????????????????????????????????????????????????? | | ?????????????????????????????????????????????????? | | ?????????????????????????????????????????????????? | | ?????????????????????????????????????????????????? | | ?????????????????????????????????????????????????? | | ?????????????????????????????????????????????????# | | ??????????????????????????????####???????????##### | | ?????????????????????????????## #???####?#### ## | | ????????????????????????????## ##### ### | | ????????????????????????????# ## | | ??????????????????????????### ### &! | | ?????????????????????????## ### &! | | ????????????????????????## ## ] | | ???????????????????????## & | | ????????????????????#### ### | | ???????????????????## #?####"" | | ???????????????????# ### #????##"" | | ???????????????????# #### ########?????#### | | ???????????????????# @R #?###???????????????? | | ???????????????????## ##???????????????????? | | ????????????????????## R#????????????????????? | | ?????????????????????## #????????????????????? | | ??????????????????????## ????????????????????? | | ???????????????????????## ???????????????????? | | ????????????????????????# ??????????????????? | | ????????????????????????# ## ?????????????????? | | ???????????????????????? #? #????????????????? | | ???????????????????????? ##? #????????????????? | | ???????????????????????? #???? ????????????????? | | ????????????????????????#????? #???????????????? | | ??????????????????????????????? ???????????????? | | ???????????????????????????????? ????????????????? | | ?????????????????????????????????????????????????? | | ?????????????????????????????????????????????????? | | ?????????????????????????????????????????????????? | | ?????????????????????????????????????????????????? | | ?????????????????????????????????????????????????? | | ?????????????????????????????????????????????????? | | ?????????????????????????????????????????????????? | | ?????????????????????????????????????????????????? | | ?????????????????????????????????????????????????? | | ?????????????????????????????????????????????????? | | ?????????????????????????????????????????????????? | +----------------------------------------------------+ Best States ------------- Heat Dissipation 25 Energy Generation 10 Energy Capacity 250 Matter Stores 300 Matter Capacity 300 Sight Range 16 Terrain Scan Density 10 Evasion (%) 50 Recoil Reduction 2 Item Schematics ----------------- None Robot Schematics ------------------ None Fabricated ------------ Nothing Repaired ---------- Nothing Alien Tech Used ----------------- None Achievements -------------- None Challenges ------------ None Game ------ Seed SegregatorEnhancedInsulator Manual? 0 Play Time 00:12:21 Cumulative 80.0 hours Start 2025.09.04 @ 15:27:38 End 2025.09.04 @ 15:40:15 Sessions 1 Manual Loads 0 Difficulty Rogue Special Mode None Game No. 132 Rogue 118 Adventurer 14 Explorer 0 Win Type - Total 1 Types 1/0/0/0/0/0/0/0/0/0 Lore% 33 Gallery% 43 Achievement% 44 Wizard Run 0 Options --------- Layout 2 ASCII 0 Keyboard 0 Movement Mouse Keybinds 0 Fullscreen 1 Font 32/SmallcapsGlow Map View 50x49 Zoom Use 0% Tactical HUD 1 Map Filters NONE Filters NONE Steam 1 RUN: ba7c4e63-cc9f-47e8-9b5a-6e8f2ae920b5